[Event "Late-Titled-Tuesday-Blitz-January-30-2024"]
[Site "Chess.com"]
[Date "2024.01.30"]
[Round "1"]
[White "Polish_fighter3000"]
[Black "Airquake"]
[Result "1-0"]
[WhiteElo "3042"]
[BlackElo "2531"]
[TimeControl "180+1"]
[EndTime "14:07:16 PST"]
[Termination "Polish_fighter3000 won on time"]

1. Nf3 {[%clk 0:02:59.2]} 1... c5 {[%clk 0:02:58.2]} 2. b3 {[%clk 0:02:56.6]}
2... d5 {[%clk 0:02:58.2]} 3. e3 {[%clk 0:02:56]} 3... Nf6 {[%clk 0:02:57.7]} 4.
Bb2 {[%clk 0:02:56]} 4... e6 {[%clk 0:02:54.1]} 5. c4 {[%clk 0:02:48.5]} 5...
Nc6 {[%clk 0:02:46.3]} 6. cxd5 {[%clk 0:02:48.1]} 6... Nxd5 {[%clk 0:02:42.9]}
7. Nc3 {[%clk 0:02:42.1]} 7... Ndb4 {[%clk 0:02:29.2]} 8. Qb1 {[%clk 0:02:37.7]}
8... b6 {[%clk 0:02:23]} 9. a3 {[%clk 0:02:34.4]} 9... Nd5 {[%clk 0:02:21]} 10.
Ne4 {[%clk 0:02:31.4]} 10... Bb7 {[%clk 0:02:16.9]} 11. h4 {[%clk 0:02:21]}
11... Qd7 {[%clk 0:02:09.5]} 12. Qc2 {[%clk 0:02:09.3]} 12... f5 {[%clk
0:02:02.3]} 13. Nc3 {[%clk 0:02:03.1]} 13... Nf6 {[%clk 0:02:00.3]} 14. Ne2
{[%clk 0:01:55.8]} 14... Be7 {[%clk 0:01:55.5]} 15. Nf4 {[%clk 0:01:55.8]} 15...
Nd5 {[%clk 0:01:31.5]} 16. Nxd5 {[%clk 0:01:53.8]} 16... exd5 {[%clk 0:01:30.2]}
17. Bxg7 {[%clk 0:01:52.9]} 17... Rg8 {[%clk 0:01:30.1]} 18. Bb2 {[%clk
0:01:53.1]} 18... d4 {[%clk 0:01:28.1]} 19. b4 {[%clk 0:01:36.4]} 19... cxb4
{[%clk 0:01:12.5]} 20. Qb3 {[%clk 0:01:25.6]} 20... Rg4 {[%clk 0:01:03.8]} 21.
Bb5 {[%clk 0:01:16.8]} 21... dxe3 {[%clk 0:01:00]} 22. dxe3 {[%clk 0:01:13.4]}
22... bxa3 {[%clk 0:00:50.8]} 23. Rd1 {[%clk 0:01:06]} 23... Bb4+ {[%clk
0:00:38.7]} 24. Ke2 {[%clk 0:01:02.2]} 24... Qf7 {[%clk 0:00:34]} 25. Qxf7+
{[%clk 0:00:50.5]} 25... Kxf7 {[%clk 0:00:32.3]} 26. Rd7+ {[%clk 0:00:51.4]}
26... Ke6 {[%clk 0:00:22.4]} 27. Rxb7 {[%clk 0:00:50.5]} 27... Na5 {[%clk
0:00:19.2]} 28. Bd7+ {[%clk 0:00:28.2]} 28... Ke7 {[%clk 0:00:12.4]} 29. Rc7
{[%clk 0:00:28.6]} 29... Kd8 {[%clk 0:00:08.7]} 30. Be5 {[%clk 0:00:26.5]} 30...
Nc4 {[%clk 0:00:08.5]} 31. Rxc4 {[%clk 0:00:13.3]} 31... Rxc4 {[%clk 0:00:08.1]}
32. Bxf5 {[%clk 0:00:13.9]} 32... Bc3 {[%clk 0:00:05]} 33. Kd3 {[%clk
0:00:08.6]} 33... Bxe5 {[%clk 0:00:02.9]} 34. Kxc4 {[%clk 0:00:08.7]} 1-0

[Event "Late-Titled-Tuesday-Blitz-January-30-2024"]
[Site "Chess.com"]
[Date "2024.01.30"]
[Round "1"]
[White "Nouali_Mohamed"]
[Black "Durarbayli"]
[Result "0-1"]
[WhiteElo "2503"]
[BlackElo "2907"]
[TimeControl "180+1"]
[EndTime "14:07:19 PST"]
[Termination "Durarbayli won on time"]

1. e4 {[%clk 0:02:55.4]} 1... c5 {[%clk 0:02:58.2]} 2. Nf3 {[%clk 0:02:55.6]}
2... d6 {[%clk 0:02:58.3]} 3. d4 {[%clk 0:02:56]} 3... cxd4 {[%clk 0:02:59.2]}
4. Nxd4 {[%clk 0:02:56.9]} 4... Nf6 {[%clk 0:02:59.3]} 5. Nc3 {[%clk 0:02:57.5]}
5... Nc6 {[%clk 0:02:59.6]} 6. Bc4 {[%clk 0:02:57.6]} 6... e6 {[%clk 0:02:58.9]}
7. Bb3 {[%clk 0:02:57.1]} 7... a6 {[%clk 0:02:59.2]} 8. Bg5 {[%clk 0:02:55.4]}
8... Be7 {[%clk 0:02:57.5]} 9. f4 {[%clk 0:02:55.6]} 9... h6 {[%clk 0:02:50.8]}
10. Bxf6 {[%clk 0:02:48.6]} 10... Bxf6 {[%clk 0:02:51.7]} 11. Nxc6 {[%clk
0:02:40.7]} 11... Bxc3+ {[%clk 0:02:34.5]} 12. bxc3 {[%clk 0:02:41.6]} 12...
bxc6 {[%clk 0:02:35.4]} 13. O-O {[%clk 0:02:37.1]} 13... O-O {[%clk 0:02:34.9]}
14. f5 {[%clk 0:02:36.2]} 14... exf5 {[%clk 0:02:31.8]} 15. exf5 {[%clk
0:02:35.2]} 15... Qf6 {[%clk 0:02:32.3]} 16. Qd4 {[%clk 0:02:31.1]} 16... Qxd4+
{[%clk 0:02:08.5]} 17. cxd4 {[%clk 0:02:31.9]} 17... Re8 {[%clk 0:02:09.3]} 18.
Rae1 {[%clk 0:02:08.7]} 18... Bd7 {[%clk 0:02:06.9]} 19. f6 {[%clk 0:02:02.1]}
19... Rxe1 {[%clk 0:01:56.8]} 20. Rxe1 {[%clk 0:02:03]} 20... gxf6 {[%clk
0:01:57.2]} 21. Re7 {[%clk 0:02:01.5]} 21... Be8 {[%clk 0:01:57.4]} 22. Kf2
{[%clk 0:01:49.1]} 22... Kf8 {[%clk 0:01:53.7]} 23. Rc7 {[%clk 0:01:44.3]} 23...
Rb8 {[%clk 0:01:53.3]} 24. Ra7 {[%clk 0:01:38.2]} 24... Rb6 {[%clk 0:01:52.5]}
25. a4 {[%clk 0:01:38.6]} 25... c5 {[%clk 0:01:42.8]} 26. a5 {[%clk 0:01:30.7]}
26... Rb4 {[%clk 0:01:42.5]} 27. dxc5 {[%clk 0:01:28.2]} 27... dxc5 {[%clk
0:01:43]} 28. Rc7 {[%clk 0:01:19.7]} 28... Rb5 {[%clk 0:01:40.8]} 29. Bd5 {[%clk
0:00:47.6]} 29... Rxa5 {[%clk 0:01:39]} 30. Rc8 {[%clk 0:00:45.6]} 30... Ke7
{[%clk 0:01:38.1]} 31. c4 {[%clk 0:00:42.3]} 31... Bd7 {[%clk 0:01:33.2]} 32.
Rh8 {[%clk 0:00:40]} 32... Ra2+ {[%clk 0:01:27.6]} 33. Kg3 {[%clk 0:00:39]}
33... a5 {[%clk 0:01:23.2]} 34. Rxh6 {[%clk 0:00:37.1]} 34... a4 {[%clk
0:01:23.3]} 35. Rh4 {[%clk 0:00:37.3]} 35... a3 {[%clk 0:01:13.2]} 36. Re4+
{[%clk 0:00:37]} 36... Kf8 {[%clk 0:01:13.8]} 37. Re3 {[%clk 0:00:37.1]} 37...
Ra1 {[%clk 0:01:06.9]} 38. h4 {[%clk 0:00:35]} 38... Bf5 {[%clk 0:01:02.3]} 39.
Rf3 {[%clk 0:00:25.7]} 39... a2 {[%clk 0:00:56.6]} 40. Ra3 {[%clk 0:00:25]}
40... Bc2 {[%clk 0:00:56.5]} 41. h5 {[%clk 0:00:07.7]} 41... Kg7 {[%clk
0:00:56.5]} 42. Ra7 {[%clk 0:00:05]} 42... Kh6 {[%clk 0:00:53.5]} 43. Bxf7
{[%clk 0:00:04.2]} 43... Bb3 {[%clk 0:00:51.2]} 44. Bg6 {[%clk 0:00:03.1]} 44...
Kg5 {[%clk 0:00:43.8]} 45. h6 {[%clk 0:00:01.3]} 45... Kxg6 {[%clk 0:00:41.2]}
46. h7 {[%clk 0:00:01.3]} 46... Rh1 {[%clk 0:00:41.9]} 0-1

[Event "Late-Titled-Tuesday-Blitz-January-30-2024"]
[Site "Chess.com"]
[Date "2024.01.30"]
[Round "1"]
[White "szachmistrz2500"]
[Black "klimkoj"]
[Result "0-1"]
[WhiteElo "2505"]
[BlackElo "2915"]
[TimeControl "180+1"]
[EndTime "14:07:23 PST"]
[Termination "klimkoj won on time"]

1. d4 {[%clk 0:03:00.9]} 1... Nf6 {[%clk 0:02:58.6]} 2. Nf3 {[%clk 0:03:00.2]}
2... e6 {[%clk 0:02:58.2]} 3. c4 {[%clk 0:02:58.7]} 3... d5 {[%clk 0:02:58.4]}
4. Nc3 {[%clk 0:02:57.5]} 4... Bb4 {[%clk 0:02:56.6]} 5. Bg5 {[%clk 0:02:54.7]}
5... h6 {[%clk 0:02:55.5]} 6. Bxf6 {[%clk 0:02:52.1]} 6... Qxf6 {[%clk
0:02:56.4]} 7. e3 {[%clk 0:02:51.6]} 7... O-O {[%clk 0:02:53.4]} 8. a3 {[%clk
0:02:50.9]} 8... Bxc3+ {[%clk 0:02:51.8]} 9. bxc3 {[%clk 0:02:51.2]} 9... c5
{[%clk 0:02:51]} 10. Be2 {[%clk 0:02:43.4]} 10... dxc4 {[%clk 0:02:45.2]} 11.
Bxc4 {[%clk 0:02:41.6]} 11... b6 {[%clk 0:02:39]} 12. O-O {[%clk 0:02:38.2]}
12... Bb7 {[%clk 0:02:39.3]} 13. Qe2 {[%clk 0:02:21.7]} 13... Nc6 {[%clk
0:02:28.2]} 14. dxc5 {[%clk 0:02:16.6]} 14... bxc5 {[%clk 0:02:22.3]} 15. Ba6
{[%clk 0:02:05.3]} 15... Rab8 {[%clk 0:02:09.9]} 16. Rab1 {[%clk 0:02:02.2]}
16... Ba8 {[%clk 0:02:04.5]} 17. Qc4 {[%clk 0:01:36.7]} 17... Rb6 {[%clk
0:01:43.2]} 18. Rxb6 {[%clk 0:01:17.5]} 18... axb6 {[%clk 0:01:41.9]} 19. Rb1
{[%clk 0:01:08.2]} 19... Na5 {[%clk 0:01:39.7]} 20. Qe2 {[%clk 0:01:07.5]} 20...
Qxc3 {[%clk 0:01:36.6]} 21. Rxb6 {[%clk 0:01:02.6]} 21... Qxa3 {[%clk
0:01:35.5]} 22. h3 {[%clk 0:01:01.5]} 22... c4 {[%clk 0:01:25.6]} 23. Nd4 {[%clk
0:00:56.3]} 23... c3 {[%clk 0:01:23.5]} 24. Bd3 {[%clk 0:00:55.2]} 24... e5
{[%clk 0:01:00]} 25. Nf5 {[%clk 0:00:52.1]} 25... Qa4 {[%clk 0:00:35.1]} 26. e4
{[%clk 0:00:41.8]} 26... g6 {[%clk 0:00:33.1]} 27. Qg4 {[%clk 0:00:28.5]} 27...
Nc6 {[%clk 0:00:21.6]} 28. Nxh6+ {[%clk 0:00:23.8]} 28... Kh7 {[%clk 0:00:21.3]}
29. Nf5 {[%clk 0:00:19.2]} 29... Kg8 {[%clk 0:00:12.5]} 30. Nh6+ {[%clk
0:00:14.6]} 30... Kh7 {[%clk 0:00:08.6]} 31. Nf5 {[%clk 0:00:14.5]} 31... Rh8
{[%clk 0:00:08]} 32. Bb5 {[%clk 0:00:10.2]} 32... Qa1+ {[%clk 0:00:07.4]} 33.
Kh2 {[%clk 0:00:10.4]} 33... c2 {[%clk 0:00:07.8]} 0-1

[Event "Late-Titled-Tuesday-Blitz-January-30-2024"]
[Site "Chess.com"]
[Date "2024.01.30"]
[Round "1"]
[White "GMG"]
[Black "gabduschew"]
[Result "1-0"]
[WhiteElo "2809"]
[BlackElo "2465"]
[TimeControl "180+1"]
[EndTime "14:07:24 PST"]
[Termination "GMG won on time"]

1. Nf3 {[%clk 0:03:00.9]} 1... Nc6 {[%clk 0:02:57.9]} 2. d4 {[%clk 0:03:00]}
2... d6 {[%clk 0:02:56.3]} 3. d5 {[%clk 0:02:52.4]} 3... Nb8 {[%clk 0:02:55.2]}
4. h3 {[%clk 0:02:49.5]} 4... c6 {[%clk 0:02:52.7]} 5. e4 {[%clk 0:02:48.6]}
5... Nf6 {[%clk 0:02:51.7]} 6. Nc3 {[%clk 0:02:48.1]} 6... cxd5 {[%clk
0:02:46.5]} 7. exd5 {[%clk 0:02:48]} 7... g6 {[%clk 0:02:45.4]} 8. Bc4 {[%clk
0:02:43.5]} 8... Bg7 {[%clk 0:02:44.2]} 9. O-O {[%clk 0:02:43.7]} 9... O-O
{[%clk 0:02:43.2]} 10. Re1 {[%clk 0:02:44]} 10... a6 {[%clk 0:02:39.1]} 11. a4
{[%clk 0:02:43.8]} 11... Qc7 {[%clk 0:02:30.9]} 12. Bf1 {[%clk 0:02:34.4]} 12...
b6 {[%clk 0:02:16.5]} 13. Bg5 {[%clk 0:02:22.1]} 13... Bb7 {[%clk 0:02:13.2]}
14. Qd2 {[%clk 0:02:21.1]} 14... Re8 {[%clk 0:02:11.8]} 15. Rad1 {[%clk
0:02:05.6]} 15... Nbd7 {[%clk 0:02:09.9]} 16. Qf4 {[%clk 0:02:02.7]} 16... Rac8
{[%clk 0:02:01.9]} 17. Bh6 {[%clk 0:01:56]} 17... Bh8 {[%clk 0:01:55.5]} 18. g4
{[%clk 0:01:51]} 18... Qc5 {[%clk 0:01:44.6]} 19. Qd2 {[%clk 0:01:28.5]} 19...
Qb4 {[%clk 0:01:43.3]} 20. Rb1 {[%clk 0:01:24.9]} 20... Nc5 {[%clk 0:01:35.9]}
21. Red1 {[%clk 0:01:09.5]} 21... Nxa4 {[%clk 0:01:26]} 22. Nxa4 {[%clk
0:01:06.3]} 22... Qxa4 {[%clk 0:01:25.5]} 23. c4 {[%clk 0:01:05.6]} 23... Ne4
{[%clk 0:00:36.2]} 24. Qe3 {[%clk 0:00:54.2]} 24... Nc5 {[%clk 0:00:32.1]} 25.
Nd4 {[%clk 0:00:39.3]} 25... e6 {[%clk 0:00:15.7]} 26. b3 {[%clk 0:00:31.3]}
26... Qd7 {[%clk 0:00:14]} 27. dxe6 {[%clk 0:00:30.1]} 27... Nxe6 {[%clk
0:00:11.8]} 28. Nxe6 {[%clk 0:00:29.7]} 28... Qxe6 {[%clk 0:00:10.7]} 29. Qxe6
{[%clk 0:00:26.3]} 29... Rxe6 {[%clk 0:00:10.6]} 30. Be3 {[%clk 0:00:25.5]}
30... b5 {[%clk 0:00:04.9]} 31. cxb5 {[%clk 0:00:26.4]} 31... axb5 {[%clk
0:00:04.9]} 32. Bxb5 {[%clk 0:00:27.3]} 32... Be4 {[%clk 0:00:04.8]} 33. Rbc1
{[%clk 0:00:26.1]} 33... Rb8 {[%clk 0:00:04.7]} 34. Bc4 {[%clk 0:00:25.3]} 34...
d5 {[%clk 0:00:04.2]} 35. Bxd5 {[%clk 0:00:22.8]} 35... Bxd5 {[%clk 0:00:04.2]}
36. Rxd5 {[%clk 0:00:23.7]} 36... Rxb3 {[%clk 0:00:04]} 37. Rc8+ {[%clk
0:00:21.3]} 37... Kg7 {[%clk 0:00:03.1]} 38. Rdd8 {[%clk 0:00:20.2]} 1-0

[Event "Late-Titled-Tuesday-Blitz-January-30-2024"]
[Site "Chess.com"]
[Date "2024.01.30"]
[Round "1"]
[White "Vasily85"]
[Black "GMRafpig"]
[Result "0-1"]
[WhiteElo "2419"]
[BlackElo "2742"]
[TimeControl "180+1"]
[EndTime "14:07:31 PST"]
[Termination "GMRafpig won on time"]

1. Nf3 {[%clk 0:03:00]} 1... Nf6 {[%clk 0:02:59.1]} 2. c4 {[%clk 0:02:59.6]}
2... e6 {[%clk 0:02:59.3]} 3. g3 {[%clk 0:02:56.2]} 3... d5 {[%clk 0:02:59]} 4.
Bg2 {[%clk 0:02:56.2]} 4... dxc4 {[%clk 0:02:59.3]} 5. Qa4+ {[%clk 0:02:38]}
5... c6 {[%clk 0:02:58.3]} 6. Qxc4 {[%clk 0:02:36.5]} 6... b5 {[%clk 0:02:58.6]}
7. Qc2 {[%clk 0:02:35.3]} 7... Bb7 {[%clk 0:02:58.2]} 8. O-O {[%clk 0:02:35]}
8... Nbd7 {[%clk 0:02:58.2]} 9. d4 {[%clk 0:02:22.4]} 9... c5 {[%clk 0:02:56.9]}
10. Rd1 {[%clk 0:02:15.1]} 10... Rc8 {[%clk 0:02:44.5]} 11. Qb3 {[%clk
0:01:32.7]} 11... a6 {[%clk 0:02:35.8]} 12. Nc3 {[%clk 0:01:19.4]} 12... b4
{[%clk 0:02:27.5]} 13. dxc5 {[%clk 0:01:08.5]} 13... Bxc5 {[%clk 0:01:55.9]} 14.
Na4 {[%clk 0:01:08.3]} 14... Be7 {[%clk 0:01:44]} 15. Be3 {[%clk 0:01:03.6]}
15... Bd5 {[%clk 0:01:32.4]} 16. Qd3 {[%clk 0:01:00.8]} 16... Qa5 {[%clk
0:01:20.7]} 17. b3 {[%clk 0:00:59.3]} 17... O-O {[%clk 0:01:20.7]} 18. Rac1
{[%clk 0:00:51]} 18... Rfd8 {[%clk 0:01:12.2]} 19. Nd4 {[%clk 0:00:46.7]} 19...
Bxg2 {[%clk 0:01:11.5]} 20. Kxg2 {[%clk 0:00:47.6]} 20... Ne5 {[%clk 0:01:06.6]}
21. Qb1 {[%clk 0:00:40]} 21... Nd5 {[%clk 0:00:57.2]} 22. Bd2 {[%clk 0:00:32.2]}
22... Nf6 {[%clk 0:00:44.8]} 23. Nf3 {[%clk 0:00:28.9]} 23... Rxc1 {[%clk
0:00:43.3]} 24. Qxc1 {[%clk 0:00:27]} 24... Qd5 {[%clk 0:00:39.2]} 25. Nb6
{[%clk 0:00:16.4]} 25... Qb7 {[%clk 0:00:33.7]} 26. Nc4 {[%clk 0:00:15.4]} 26...
Nxf3 {[%clk 0:00:33.1]} 27. exf3 {[%clk 0:00:15.5]} 27... Nd5 {[%clk 0:00:33.5]}
28. Be3 {[%clk 0:00:12.9]} 28... Rc8 {[%clk 0:00:33.5]} 29. Bd4 {[%clk
0:00:11.7]} 29... Bc5 {[%clk 0:00:31]} 30. Qd2 {[%clk 0:00:11.5]} 30... Bxd4
{[%clk 0:00:30.4]} 31. Qxd4 {[%clk 0:00:12.4]} 31... Qc7 {[%clk 0:00:28.4]} 32.
Rd2 {[%clk 0:00:09.7]} 32... h6 {[%clk 0:00:27.7]} 33. Qe4 {[%clk 0:00:09.6]}
33... Nf6 {[%clk 0:00:26.7]} 34. Qe5 {[%clk 0:00:09.5]} 34... Nd5 {[%clk
0:00:23.7]} 35. Qxc7 {[%clk 0:00:08.9]} 35... Rxc7 {[%clk 0:00:24.2]} 36. f4
{[%clk 0:00:09.8]} 36... Kf8 {[%clk 0:00:24.3]} 37. Kf3 {[%clk 0:00:10.4]} 37...
Ke7 {[%clk 0:00:25]} 38. Ke4 {[%clk 0:00:10.6]} 38... Nc3+ {[%clk 0:00:24.8]}
39. Ke3 {[%clk 0:00:10.1]} 39... Nd5+ {[%clk 0:00:22.8]} 40. Ke4 {[%clk
0:00:10.3]} 40... Rd7 {[%clk 0:00:22.4]} 41. Kf3 {[%clk 0:00:08.3]} 41... Nc3
{[%clk 0:00:21.7]} 0-1

[Event "Late-Titled-Tuesday-Blitz-January-30-2024"]
[Site "Chess.com"]
[Date "2024.01.30"]
[Round "1"]
[White "Siemba"]
[Black "HansOnTwitch"]
[Result "0-1"]
[WhiteElo "2541"]
[BlackElo "3210"]
[TimeControl "180+1"]
[EndTime "14:07:34 PST"]
[Termination "HansOnTwitch won on time"]

1. e4 {[%clk 0:03:00.9]} 1... c6 {[%clk 0:02:51.5]} 2. d4 {[%clk 0:03:00.1]}
2... d5 {[%clk 0:02:30.2]} 3. Nc3 {[%clk 0:02:59.9]} 3... dxe4 {[%clk
0:02:30.3]} 4. Nxe4 {[%clk 0:03:00.8]} 4... Nf6 {[%clk 0:02:30.7]} 5. Nxf6+
{[%clk 0:03:01.5]} 5... exf6 {[%clk 0:02:31.6]} 6. c3 {[%clk 0:03:02.1]} 6...
Bd6 {[%clk 0:02:32.1]} 7. Bd3 {[%clk 0:03:02.8]} 7... O-O {[%clk 0:02:32.2]} 8.
Qc2 {[%clk 0:03:03.5]} 8... Re8+ {[%clk 0:02:32.4]} 9. Ne2 {[%clk 0:03:04.2]}
9... h6 {[%clk 0:02:33.1]} 10. O-O {[%clk 0:03:00.2]} 10... Nd7 {[%clk
0:02:23.8]} 11. Ng3 {[%clk 0:02:53.3]} 11... Nf8 {[%clk 0:02:22.2]} 12. Bd2
{[%clk 0:02:51.2]} 12... Be6 {[%clk 0:02:17.7]} 13. Rae1 {[%clk 0:02:37.8]}
13... Bc7 {[%clk 0:02:17.6]} 14. Ne4 {[%clk 0:02:33.6]} 14... b6 {[%clk
0:02:17.1]} 15. f4 {[%clk 0:02:08.3]} 15... f5 {[%clk 0:02:12.1]} 16. Nf2 {[%clk
0:02:05.1]} 16... Qd7 {[%clk 0:02:07.9]} 17. Kh1 {[%clk 0:01:59]} 17... Rad8
{[%clk 0:02:07]} 18. Be3 {[%clk 0:01:50.4]} 18... Ng6 {[%clk 0:02:06.7]} 19. Nh3
{[%clk 0:01:50.1]} 19... Ne7 {[%clk 0:02:05.8]} 20. Ng1 {[%clk 0:01:45.7]} 20...
Nd5 {[%clk 0:02:05.1]} 21. Bc1 {[%clk 0:01:45.8]} 21... c5 {[%clk 0:01:56.1]}
22. dxc5 {[%clk 0:01:38]} 22... Nxc3 {[%clk 0:01:54.8]} 23. Bxf5 {[%clk
0:01:26.4]} 23... Nxa2 {[%clk 0:01:40.5]} 24. Bxe6 {[%clk 0:01:21.4]} 24... Rxe6
{[%clk 0:01:39.6]} 25. Rd1 {[%clk 0:01:17.7]} 25... Qc8 {[%clk 0:01:25.8]} 26.
cxb6 {[%clk 0:01:08.3]} 26... Bxb6 {[%clk 0:01:25.4]} 27. Qa4 {[%clk 0:01:07.3]}
27... Rxd1 {[%clk 0:01:21.2]} 28. Qxd1 {[%clk 0:01:08.2]} 28... Nxc1 {[%clk
0:01:19.1]} 29. Qxc1 {[%clk 0:01:08.4]} 29... Rc6 {[%clk 0:01:19.5]} 30. Qe1
{[%clk 0:00:43.2]} 30... Rc2 {[%clk 0:01:18.2]} 31. Qe5 {[%clk 0:00:41.5]} 31...
Kh8 {[%clk 0:00:49.1]} 32. Nf3 {[%clk 0:00:33.6]} 32... f6 {[%clk 0:00:43.2]}
33. Qd5 {[%clk 0:00:22.8]} 33... Qc4 {[%clk 0:00:30.3]} 34. Qd1 {[%clk
0:00:13.3]} 34... Rxb2 {[%clk 0:00:26.4]} 35. Nh4 {[%clk 0:00:13.6]} 35... Qe2
{[%clk 0:00:17.5]} 36. Qc1 {[%clk 0:00:02.6]} 36... Rc2 {[%clk 0:00:16.3]} 37.
Qb1 {[%clk 0:00:02.6]} 37... Bf2 {[%clk 0:00:13.7]} 38. Ng6+ {[%clk 0:00:02.3]}
38... Kh7 {[%clk 0:00:13.7]} 39. f5 {[%clk 0:00:02.2]} 39... Bb6 {[%clk
0:00:12.2]} 40. Nf4 {[%clk 0:00:02.5]} 40... Qe4 {[%clk 0:00:10.5]} 41. Qb3
{[%clk 0:00:01.5]} 41... Qxf4 {[%clk 0:00:06.7]} 0-1

[Event "Late-Titled-Tuesday-Blitz-January-30-2024"]
[Site "Chess.com"]
[Date "2024.01.30"]
[Round "1"]
[White "GoltsevDmitry2000"]
[Black "MFatigue"]
[Result "1-0"]
[WhiteElo "2819"]
[BlackElo "2471"]
[TimeControl "180+1"]
[EndTime "14:07:34 PST"]
[Termination "GoltsevDmitry2000 won by checkmate"]

1. e4 {[%clk 0:03:00.9]} 1... e6 {[%clk 0:03:00]} 2. d4 {[%clk 0:02:59.5]} 2...
d5 {[%clk 0:03:00.7]} 3. exd5 {[%clk 0:03:00.4]} 3... exd5 {[%clk 0:03:00.9]} 4.
Nf3 {[%clk 0:03:01.3]} 4... Nf6 {[%clk 0:03:01.5]} 5. c4 {[%clk 0:03:02.2]} 5...
Bb4+ {[%clk 0:03:01.7]} 6. Nc3 {[%clk 0:03:02.4]} 6... O-O {[%clk 0:03:02]} 7.
Be2 {[%clk 0:03:02.9]} 7... Nc6 {[%clk 0:03:01.7]} 8. O-O {[%clk 0:03:02.7]}
8... Bg4 {[%clk 0:03:01.4]} 9. Bg5 {[%clk 0:03:02.4]} 9... dxc4 {[%clk
0:02:57.5]} 10. Bxc4 {[%clk 0:03:03.3]} 10... Be7 {[%clk 0:02:57.4]} 11. Re1
{[%clk 0:03:00.2]} 11... Re8 {[%clk 0:02:56.8]} 12. h3 {[%clk 0:02:48.1]} 12...
Bxf3 {[%clk 0:02:56.5]} 13. Qxf3 {[%clk 0:02:47.5]} 13... Qxd4 {[%clk 0:02:55]}
14. Bb3 {[%clk 0:02:44.5]} 14... Qc5 {[%clk 0:02:20.2]} 15. Bh4 {[%clk
0:02:15.3]} 15... Rad8 {[%clk 0:01:56.3]} 16. Ne4 {[%clk 0:02:02.2]} 16... Ne5
{[%clk 0:00:35.7]} 17. Qf5 {[%clk 0:01:50.7]} 17... Nxe4 {[%clk 0:00:34.9]} 18.
Rxe4 {[%clk 0:01:40.1]} 18... Bxh4 {[%clk 0:00:15.6]} 19. Rxh4 {[%clk
0:01:38.1]} 19... g6 {[%clk 0:00:11]} 20. Bxf7+ {[%clk 0:01:18.7]} 20... Kg7
{[%clk 0:00:10]} 21. Rxh7+ {[%clk 0:01:19.4]} 21... Kxh7 {[%clk 0:00:09.5]} 22.
Bxg6+ {[%clk 0:01:18.3]} 22... Kg7 {[%clk 0:00:09.6]} 23. Bxe8 {[%clk 0:01:16]}
23... Rxe8 {[%clk 0:00:09.5]} 24. Rd1 {[%clk 0:01:05.3]} 24... Qf8 {[%clk
0:00:07.1]} 25. Qg5+ {[%clk 0:01:02.5]} 25... Ng6 {[%clk 0:00:07.3]} 26. g3
{[%clk 0:00:50.7]} 26... Qf6 {[%clk 0:00:07.8]} 27. Qb5 {[%clk 0:00:49.7]} 27...
Rf8 {[%clk 0:00:03.4]} 28. Rd2 {[%clk 0:00:46.1]} 28... b6 {[%clk 0:00:03.7]}
29. h4 {[%clk 0:00:44.5]} 29... Rf7 {[%clk 0:00:03.1]} 30. Re2 {[%clk
0:00:42.9]} 30... c5 {[%clk 0:00:02]} 31. Qa4 {[%clk 0:00:35.7]} 31... Nf8
{[%clk 0:00:02.2]} 32. Qe4 {[%clk 0:00:31.7]} 32... Qg6 {[%clk 0:00:01.9]} 33.
Qd5 {[%clk 0:00:28.6]} 33... Qf6 {[%clk 0:00:02.2]} 34. h5 {[%clk 0:00:28.2]}
34... Qf3 {[%clk 0:00:02.3]} 35. Qe5+ {[%clk 0:00:26.8]} 35... Qf6 {[%clk
0:00:02.6]} 36. Qe3 {[%clk 0:00:21.8]} 36... Nh7 {[%clk 0:00:02.8]} 37. Qd2
{[%clk 0:00:20.9]} 37... Qg5 {[%clk 0:00:03.1]} 38. Qc3+ {[%clk 0:00:18.9]}
38... Qf6 {[%clk 0:00:03.2]} 39. Qd3 {[%clk 0:00:16.1]} 39... Qf5 {[%clk
0:00:03.6]} 40. Qc3+ {[%clk 0:00:16.3]} 40... Qf6 {[%clk 0:00:04]} 41. Qe1
{[%clk 0:00:15.8]} 41... Qf5 {[%clk 0:00:04.3]} 42. Re5 {[%clk 0:00:15.1]} 42...
Qf3 {[%clk 0:00:04.7]} 43. Re6 {[%clk 0:00:14]} 43... Qf5 {[%clk 0:00:03.8]} 44.
h6+ {[%clk 0:00:13.5]} 44... Kf8 {[%clk 0:00:03.9]} 45. Re8# {[%clk 0:00:13.8]}
1-0

[Event "Late-Titled-Tuesday-Blitz-January-30-2024"]
[Site "Chess.com"]
[Date "2024.01.30"]
[Round "1"]
[White "biostatistician"]
[Black "protectiago"]
[Result "1-0"]
[WhiteElo "2562"]
[BlackElo "2060"]
[TimeControl "180+1"]
[EndTime "14:07:34 PST"]
[Termination "biostatistician won by checkmate"]

1. d4 {[%clk 0:02:58.1]} 1... Nf6 {[%clk 0:02:58.5]} 2. Nf3 {[%clk 0:02:56.6]}
2... e6 {[%clk 0:02:55.7]} 3. c4 {[%clk 0:02:56]} 3... d5 {[%clk 0:02:55.7]} 4.
Nc3 {[%clk 0:02:55.7]} 4... Be7 {[%clk 0:02:54.3]} 5. Bg5 {[%clk 0:02:55.6]}
5... Nbd7 {[%clk 0:02:44.1]} 6. e3 {[%clk 0:02:55.3]} 6... O-O {[%clk
0:02:35.3]} 7. Rc1 {[%clk 0:02:53]} 7... dxc4 {[%clk 0:02:23.2]} 8. Bxc4 {[%clk
0:02:52.5]} 8... c5 {[%clk 0:02:21]} 9. O-O {[%clk 0:02:52]} 9... cxd4 {[%clk
0:02:20.5]} 10. exd4 {[%clk 0:02:49.9]} 10... h6 {[%clk 0:02:13.6]} 11. Be3
{[%clk 0:02:48.3]} 11... Nb6 {[%clk 0:02:13.6]} 12. Bd3 {[%clk 0:02:46]} 12...
Nbd5 {[%clk 0:02:13.7]} 13. Qd2 {[%clk 0:02:44.2]} 13... Nxe3 {[%clk 0:02:13.2]}
14. fxe3 {[%clk 0:02:43.9]} 14... Bd7 {[%clk 0:02:12.9]} 15. e4 {[%clk 0:02:35]}
15... Bc6 {[%clk 0:02:12]} 16. e5 {[%clk 0:02:34.5]} 16... Nd5 {[%clk
0:02:11.2]} 17. Ne4 {[%clk 0:02:34.6]} 17... Bb4 {[%clk 0:02:03.2]} 18. Qf2
{[%clk 0:02:30.5]} 18... Nf4 {[%clk 0:01:56.1]} 19. Bb1 {[%clk 0:02:29.6]} 19...
Bb5 {[%clk 0:01:47.3]} 20. Nf6+ {[%clk 0:01:50]} 20... Kh8 {[%clk 0:01:36.1]}
21. Qh4 {[%clk 0:01:49.9]} 21... Ne2+ {[%clk 0:01:07.3]} 22. Kh1 {[%clk
0:01:47.5]} 22... Nxc1 {[%clk 0:01:05.8]} 23. Rxc1 {[%clk 0:01:42.7]} 23... Rc8
{[%clk 0:00:51.6]} 24. Rg1 {[%clk 0:01:33.7]} 24... Bc6 {[%clk 0:00:30.8]} 25.
Ng5 {[%clk 0:01:21.4]} 25... Be7 {[%clk 0:00:28.5]} 26. Nxf7+ {[%clk 0:00:32.5]}
26... Rxf7 {[%clk 0:00:26.5]} 27. Qh5 {[%clk 0:00:33.4]} 27... Be8 {[%clk
0:00:10.9]} 28. Nxe8 {[%clk 0:00:02.7]} 28... Qxe8 {[%clk 0:00:10.5]} 29. Bg6
{[%clk 0:00:02.9]} 29... Qf8 {[%clk 0:00:09.7]} 30. Bxf7 {[%clk 0:00:01.7]}
30... Rc7 {[%clk 0:00:09.5]} 31. Bg6 {[%clk 0:00:01.9]} 31... Bg5 {[%clk
0:00:09.5]} 32. Bb1 {[%clk 0:00:02.3]} 32... Rc1 {[%clk 0:00:09]} 33. Qg6 {[%clk
0:00:02.4]} 33... Qg8 {[%clk 0:00:06.6]} 34. Rxc1 {[%clk 0:00:01.8]} 34... Bxc1
{[%clk 0:00:06.4]} 35. b3 {[%clk 0:00:02.6]} 35... Ba3 {[%clk 0:00:06.2]} 36. h3
{[%clk 0:00:02.9]} 36... Bb2 {[%clk 0:00:05.4]} 37. Qe4 {[%clk 0:00:02.9]} 37...
Qf8 {[%clk 0:00:04.6]} 38. Kg1 {[%clk 0:00:03.3]} 38... Qb4 {[%clk 0:00:04]} 39.
Qh7# {[%clk 0:00:03.4]} 1-0